Workbook

Sheet EV calcs
E1: Derived 5-cycle MPG Calculations For Electric Vehicles
A3: Please Enter: | D3: (Uses 2017 and later model year derived 5-cycle coefficients from EPA Guidance letter CD-15-15, June 22, 2015)
A4: Model Year: | C4: 2021
A5: Manufacturer Name: | C5: xxxxxxx | F5: Values in Yellow fill are used on FE Labels (window stickers)
A6: Model Name | C6: yyyyyyyy | L6: D. Good | N6: December 17, 2019
A7: Test Date: | C7: xx/yy/2020
A9: I. Calculate Electric vehicle FE Label city, Hwy, Combined FE values using the 2017MY and later (derived 5-cycle) method and the 30% cap method:
B11: Enter unadjusted unrounded kW-hr/100mi Values (in red text blocks) as determined from SAE J1634: | K11: 2017MY and later FE Label method (Derived 5-cycle)
K12: Derived 5-cycle City | L12: Derived 5-cycle Hwy | M12: Adjusted Combined | N12: Units
D13: City | E13: Highway | F13: Combined
D14: (round mpg to 0.1mpg) | E14: (round mpg to 0.1mpg) | F14: Calculated unadjusted combined | G14: Units
J15: Calculate derived 5-cycle mpg: | K15: =astm((1/((B40)+(B41/D17))), 1) -> 95.1 | L15: =astm((1/((B42)+(B43/E17))), 1) -> 80.8 | M15: =astm((1/((0.55/K15)+(0.45/L15))), 1) -> 88.1 | N15: mpg
B16: Elect veh FE | C16: unrounded kW-hr/100 mi | D16: 18.6705 | E16: 23.9063 | F16: =(0.55*D16+0.45*E16) -> 21.02661 | G16: kW-hr/100 mi | J16: convert back to kW-hr/100 mi: | K16: =astm((0.1*A48/K15), 1) -> 35.4 | L16: =astm((0.1*A48/L15), 1) -> 41.7 | M16: =ROUND((0.1*A48/M15), 1) -> 38.3 | N16: kW-hr/100 mi Derived 5-cycle
B17: Elect veh FE | C17: converted to mpg | D17: =astm((A48/(10*D16)),1) -> 180.5 | E17: =astm((A48/(10*E16)),1) -> 141 | F17: =astm((1/((0.55/D17)+(0.45/E17))), 4) -> 160.2929 | G17: mpg | J17: Percent adjustment mpg: | K17: =(D17-K15)/D17 -> 0.4731301939 | L17: =(E17-L15)/E17 -> 0.4269503546 | M17: =(F17-M15)/F17 -> 0.450381146 | N17: percent
J18: MPG w/ 30% Cap | K18: =0.7*D17 -> 126.35 | L18: =0.7*E17 -> 98.7 | M18: =0.7*F17 -> 112.20503 | N18: MPGe with 30 % Cap
J19: convert back to kW-hr/100 mi: | K19: =astm((0.1*A48/K18), 4) -> 26.6759 | L19: =astm((0.1*A48/L18), 4) -> 34.1489 | M19: =astm((0.1*A48/M18), 4) -> 30.0388 | N19: kW-hr/100 mi w/30 % Cap
M20: =0.55*K19+0.45*L19 -> 30.03875
J21: 2021 Label Values:
J22: Rounded MPG w/30% cap: | K22: =astm(K18,0) -> 126 | L22: 99 | M22: 112
J23: Rounded kW=hr/100 mi: | K23: 27 | L23: 34 | M23: 30
A26: II. Calculate Electric vehicle driving ranges using the unadjusted SAE J1634 method and the 2017MY and later (derived 5-cycle) method:
B28: Enter unadjusted City & Hwy Range Values in miles (in red text blocks) as determined from SAE J1634:
D30: City Range | E30: Hwy Range | F30: Combined Range | G30: Rounded Range | H30: Units | J30: Method:
A31: Calculate unadjusted driving range: | D31: 111.293 | E31: 89.42 | F31: =0.55*D31+0.45*E31 -> 101.45015 | G31: =astm(F31,0) -> 101 | H31: miles | J31: Unadjusted (SAE J1634)
A32: Calculate adjusted driving range (2017 method, No Cap): | D32: =D31*(1-K17) -> 58.63692133 | E32: =E31*(1-L17) -> 51.24209929 | F32: =F31*(1-M17) -> 55.75891518 | G32: =astm(F32,0) -> 56 | H32: miles | J32: 2021 (derived 5-cycle, mpg-based, No Cap)
A33: Calculate adjusted driving range (2017 method, 30% Cap): | D33: =D31*(1-0.3) -> 77.9051 | E33: =E31*(1-0.3) -> 62.594 | F33: =F31*(1-0.3) -> 71.015105 | G33: =astm(F33,0) -> 71 | H33: miles | J33: 2021 (derived 5-cycle, mpg-based, 30% Cap)
D37: III. Calculate Electric vehicle annual fuel cost and 5-year savings, per 40 CFR 600.311-12(e)
A38: 2017 and later model year MPG Factors:
A39: ref. 40 CFR 600.210-08 and CD-15-15 (June 22, 2015) | E39: Enter Average 2021 5-year Fuel Cost: | H39: 7500
A40: City Intercept: | B40: 0.004091 | E40: Enter 2021 U.S. electricity costs: | H40: 0.13 | I40: per kw-hr
A41: City Slope: | B41: 1.1601 | E41: (from CD-2019-13 for 2021 model year)
A42: Hwy Intercept: | B42: 0.003191 | D42: Calculate unrounded adjusted combined miles/kw-hr: | H42: =100/M19 -> 3.329027791 | I42: mi/kw-hr | M42: 2021 Label | O42: 2021 Label
A43: Hwy Slope: | B43: 1.2945 | M43: Rounded | O43: 5-year
H44: Unrounded | M44: Annual | O44: Amount
A45: Petroleum Equivalency Factor for FE Labels; | E45: Annual Miles | F45: Cost | G45: Units | H45: Annual Fuel Cost* | J45: Method | M45: Fuel Cost | O45: You Save:
A46: ref. 40 CFR 600.002 "Gasoline gallon equivalent" definition | E46: 15000 | F46: =H40 -> 0.13 | G46: per kw-hr | H46: =150*F46*M16 -> 746.85 | J46: (current derived 5-cycle, mpg-based, No Cap) | M46: =astm(H46/50,0) *50 -> 750 | O46: =$H$39 - 5*M46 -> 3750
E47: 15000 | F47: =H40 -> 0.13 | G47: per kw-hr | H47: =15000*F47/H42 -> 585.7566 | J47: (derived 5-cycle, mpg-based, 30% Cap) | M47: =astm(H47/50,0) *50 -> 600 | O47: =$H$39 - 5*M47 -> 4500
A48: 33705 | B48: watt-hr/gallon
G49: *Note: Annual fuel costs should be ASTM rounded to the nearest $50.
